fUSD/lending_fUSD_20250806
["ID","MTS","AMOUNT","RATE_DAILY","PERIOD"]
[377618048,1754459476041,-1263.84,0.0003589,14]
[377618049,1754459476051,-2225.36,0.0003589,14]
[377618050,1754459476060,-400.0,0.0003589,14]
[377618051,1754459476070,-810.67,0.0003589,14]
[377618052,1754459476080,-1277.25,0.0003589,14]
[377618053,1754459476089,-400.0,0.0003589,14]
[377618054,1754459476099,-533.65,0.0003589,14]
[377618055,1754459476110,-527.2,0.0003589,14]
[377618056,1754459476119,-826.89,0.0003589,14]
[377618057,1754459476129,-2403.91,0.0003589,14]
[377618058,1754459476138,-2554.15,0.0003589,14]
[377618059,1754459476148,-400.0,0.0003589,14]
[377618060,1754459476157,-191.49310835,0.0003589,14]
[377618061,1754459476167,-400.0,0.0003589,14]
[377618062,1754459476177,-400.0,0.0003589,14]
[377618063,1754459476186,-400.0,0.0003589,14]
[377618064,1754459476195,-482.70237623,0.0003589,14]
[377618065,1754459476205,-1503.73,0.0003589,14]
[377618066,1754459476214,-1814.57,0.0003589,14]
[377618067,1754459476223,-1648.81,0.0003589,14]
[377618068,1754459476233,-1458.03,0.0003589,14]
[377618069,1754459476243,-2356.82,0.0003589,14]
[377618070,1754459476252,-2132.12,0.0003589,14]
[377618071,1754459476262,-400.0,0.0003589,14]
[377618072,1754459476271,-1851.69,0.0003589,14]
[377618073,1754459476281,-2647.47,0.0003589,14]
[377618074,1754459476290,-400.0,0.0003589,14]
[377618075,1754459476299,-400.0,0.0003589,14]
[377618076,1754459476309,-2040.3,0.0003589,14]
[377618077,1754459476319,-807.25,0.0003589,14]
[377618078,1754459476328,-999.01,0.0003589,14]
[377618079,1754459476337,-400.0,0.0003589,14]
[377618080,1754459476347,-400.0,0.0003589,14]
[377618081,1754459476357,-1128.97,0.0003589,14]
[377618082,1754459476367,-400.0,0.0003589,14]
[377618083,1754459476376,-1960.91,0.0003589,14]
[377618084,1754459476386,-869.21,0.0003589,14]
[377618085,1754459476395,-861.65,0.0003589,14]
[377618086,1754459476405,-985.55,0.0003589,14]
[377618087,1754459476414,-611.64,0.0003589,14]
[377618088,1754459476424,-1564.23,0.0003589,14]
[377618089,1754459476433,-1298.64,0.0003589,14]
[377618090,1754459476443,-302.98969637,0.0003589,14]
[377618091,1754459476453,-400.0,0.0003589,14]
[377618092,1754459476463,-499.16,0.0003589,14]
[377618093,1754459476473,-1570.91,0.0003589,14]
[377618094,1754459476483,-474.98,0.0003589,14]
[377618095,1754459476493,-1791.68,0.0003589,14]
[377618096,1754459476503,-400.0,0.0003589,14]
[377618097,1754459476512,-2608.46,0.0003589,14]
[377618098,1754459476523,-1072.05,0.0003589,14]
[377618099,1754459476532,-4495.84,0.0003589,14]
[377618100,1754459476543,-1006.92,0.0003589,14]
[377618101,1754459476555,-3518.85,0.0003589,14]
[377618102,1754459476565,-400.0,0.0003589,14]
[377618103,1754459476574,-400.0,0.0003589,14]
[377618104,1754459476584,-400.0,0.0003589,14]
[377618105,1754459476595,-445.67,0.0003589,14]
[377618106,1754459476606,-400.0,0.0003589,14]
[377618107,1754459476615,-893.74,0.0003589,14]
[377618108,1754459476774,-1932.33,0.0003589,14]
[377618109,1754459476784,-2655.03,0.0003589,14]
[377618110,1754459476793,-882.32,0.0003589,14]
[377618111,1754459476803,-952.85,0.0003589,14]
[377618112,1754459476812,-400.0,0.0003589,14]
[377618113,1754459476823,-416.26,0.0003589,14]
[377618114,1754459476833,-4819.96,0.0003589,14]
[377618115,1754459476843,-604.96,0.0003589,14]
[377618116,1754459476856,-1779.3,0.0003589,14]
[377618117,1754459476865,-401.43112665,0.0003589,14]
[377618118,1754459476875,-400.0,0.0003589,14]
[377618119,1754459476884,-1926.11,0.0003589,14]
[377618120,1754459476893,-1177.97,0.0003589,14]
[377618121,1754459476903,-1095.76,0.0003589,14]
[377618122,1754459476912,-2177.16,0.0003589,14]
[377618123,1754459476922,-1982.93,0.0003589,14]
[377618124,1754459476931,-400.0,0.0003589,14]
[377618125,1754459476940,-249.34989872,0.0003589,14]
[377618126,1754459476951,-400.0,0.0003589,14]
[377618127,1754459476961,-1498.74,0.0003589,14]
[377618128,1754459476970,-400.0,0.0003589,14]
[377618129,1754459476980,-468.18,0.0003589,14]
[377618130,1754459476990,-408.98,0.0003589,14]
[377618131,1754459477000,-400.0,0.0003589,14]
[377618132,1754459477012,-236.63,0.0003589,14]
[377618133,1754459477022,-400.0,0.0003589,14]
[377618134,1754459477031,-400.0,0.0003589,14]
[377618135,1754459477043,-2232.7,0.0003589,14]
[377618136,1754459477052,-1800.55,0.0003589,14]
[377618137,1754459477062,-2138.81,0.0003589,14]
[377618138,1754459477072,-1621.94,0.0003589,14]
[377618139,1754459477081,-400.0,0.0003589,14]
[377618140,1754459477091,-1862.46,0.0003589,14]
[377618141,1754459477101,-1310.5,0.0003589,14]
[377618142,1754459477113,-1022.24,0.0003589,14]
[377618143,1754459477122,-491.96,0.0003589,14]
[377618144,1754459477132,-500.0,0.0003589,10]
[377618145,1754459477142,-400.0,0.0003589,14]
[377618146,1754459477152,-724.11,0.0003589,14]
[377618147,1754459477162,-400.0,0.0003589,14]
[377618148,1754459477171,-2583.39,0.0003589,14]
[377618149,1754459477181,-1680.26,0.0003589,14]
[377618150,1754459477191,-984.53,0.0003589,14]
[377618151,1754459477200,-1623.83,0.0003589,14]
[377618152,1754459477210,-400.0,0.0003589,14]
[377618153,1754459477220,-400.0,0.0003589,14]
[377618154,1754459477230,-400.0,0.0003589,14]
[377618155,1754459477239,-400.0,0.0003589,14]
[377618156,1754459477249,-800.24,0.0003589,14]
[377618157,1754459477259,-400.0,0.0003589,14]
[377618158,1754459477267,-1895.0,0.0003589,14]
[377618159,1754459477277,-1629.14,0.0003589,14]
[377618160,1754459477288,-400.0,0.0003589,14]
[377618161,1754459477298,-454.8,0.0003589,14]
[377618162,1754459477308,-1646.49,0.0003589,14]
[377618163,1754459477317,-400.0,0.0003589,14]
[377618164,1754459477327,-400.0,0.0003589,14]
[377618165,1754459477337,-1026.3,0.0003589,14]
[377618166,1754459477347,-4558.61,0.0003589,14]
[377618167,1754459477564,-587.95,0.0003589,14]
[377618168,1754459477574,-1936.72,0.0003589,14]
[377618169,1754459477583,-400.0,0.0003589,14]
[377618170,1754459477594,-400.0,0.0003589,14]
[377618171,1754459477605,-1641.18,0.0003589,14]
[377618172,1754459477614,-1851.28,0.0003589,14]
[377618173,1754459477625,-757.92,0.0003589,14]
[377618174,1754459477635,-400.0,0.0003589,14]
[377618175,1754459477644,-500.0,0.0003589,10]
[377618176,1754459477653,-400.0,0.0003589,14]
[377618177,1754459477663,-400.0,0.0003589,14]
[377618178,1754459477672,-2584.57,0.0003589,14]
[377618179,1754459477682,-1359.39,0.0003589,14]
[377618180,1754459477691,-400.0,0.0003589,14]
[377618181,1754459477700,-402.19,0.0003589,14]
[377618182,1754459477710,-1196.49,0.0003589,14]
[377618183,1754459477719,-400.0,0.0003589,14]
[377618184,1754459477728,-777.51,0.0003589,14]
[377618185,1754459477737,-400.0,0.0003589,14]
[377618186,1754459477747,-1519.54,0.0003589,14]
[377618187,1754459477757,-2001.95,0.0003589,14]
[377618188,1754459477766,-400.0,0.0003589,14]
[377618189,1754459477776,-2657.02,0.0003589,14]
[377618190,1754459477785,-561.8,0.0003589,14]
[377618191,1754459477795,-2277.96,0.0003589,14]
[377618192,1754459477807,-400.52984215,0.0003589,14]
[377618193,1754459477816,-400.0,0.0003589,14]
[377618194,1754459477827,-515.43,0.0003589,14]
[377618195,1754459477836,-400.0,0.0003589,14]
[377618196,1754459477846,-763.67,0.0003589,14]
[377618197,1754459477856,-400.0,0.0003589,14]
[377618198,1754459477865,-400.0,0.0003589,14]
[377618199,1754459477875,-400.0,0.0003589,14]
[377618200,1754459477884,-1407.15,0.0003589,14]
[377618201,1754459477894,-1655.4,0.0003589,14]
[377618202,1754459477903,-1205.07,0.0003589,14]
[377618203,1754459477913,-420.64,0.0003589,14]
[377618204,1754459477922,-1218.41,0.0003589,14]
[377618205,1754459477931,-468.09,0.0003589,14]
[377618206,1754459477941,-400.0,0.0003589,14]
[377618207,1754459477951,-400.0,0.0003589,14]
[377618208,1754459477960,-400.0,0.0003589,14]
[377618209,1754459477969,-1872.13,0.0003589,14]
[377618210,1754459477978,-400.0,0.0003589,14]
[377618211,1754459477987,-3821.01,0.0003589,14]
[377618212,1754459477997,-1856.53,0.0003589,14]
[377618213,1754459478006,-400.0,0.0003589,14]
[377618214,1754459478015,-1036.01,0.0003589,14]
[377618215,1754459478025,-950.01,0.0003589,14]
[377618216,1754459478035,-441.02,0.0003589,14]
[377618217,1754459478044,-400.0,0.0003589,14]
[377618218,1754459478054,-1576.37,0.0003589,14]
[377618219,1754459478063,-400.0,0.0003589,14]
[377618220,1754459478072,-596.11,0.0003589,14]
[377618221,1754459478081,-400.0,0.0003589,14]
[377618222,1754459478091,-2038.65,0.0003589,14]
[377618223,1754459478101,-539.97,0.0003589,14]
[377618224,1754459478111,-400.23,0.0003589,14]
[377618225,1754459478121,-400.0,0.0003589,14]
[377618226,1754459478131,-797.34,0.0003589,14]
[377618227,1754459478140,-1790.88,0.0003589,14]
[377618228,1754459478150,-400.0,0.0003589,14]
[377618229,1754459478161,-630.89,0.0003589,14]
[377618230,1754459478170,-400.0,0.0003589,14]
[377618231,1754459478180,-1863.93,0.0003589,14]
[377618232,1754459478189,-400.0,0.0003589,14]
[377618233,1754459478199,-400.0,0.0003589,14]
[377618234,1754459478208,-400.0,0.0003589,14]
[377618235,1754459478218,-2746.12,0.0003589,14]
[377618236,1754459478227,-1845.82,0.0003589,14]
[377618237,1754459478237,-400.0,0.0003589,14]
[377618238,1754459478246,-400.0,0.0003589,14]
[377618239,1754459478256,-1508.49,0.0003589,14]
[377618240,1754459478265,-400.0,0.0003589,14]
[377618241,1754459478275,-400.0,0.0003589,14]
[377618242,1754459478284,-400.0,0.0003589,14]
[377618243,1754459478294,-400.0,0.0003589,14]
[377618244,1754459478303,-400.0,0.0003589,14]
[377618245,1754459478313,-400.0,0.0003589,14]
[377618246,1754459478323,-629.98,0.0003589,14]
[377618247,1754459478332,-400.0,0.0003589,14]
[377618248,1754459478342,-809.81,0.0003589,14]
[377618249,1754459478351,-2875.37,0.0003589,14]
[377618250,1754459478362,-985.68,0.0003589,14]
[377618251,1754459478372,-400.0,0.0003589,14]
[377618252,1754459478383,-967.81,0.0003589,14]
[377618253,1754459478393,-400.0,0.0003589,14]
[377618254,1754459478403,-1741.03,0.0003589,14]
[377618255,1754459478414,-1637.18,0.0003589,14]
[377618256,1754459478424,-1447.66,0.0003589,14]
[377618257,1754459478434,-1889.2,0.0003589,14]
[377618258,1754459478444,-3804.87,0.0003589,14]
[377618259,1754459478454,-4214.66,0.0003589,14]
[377618260,1754459478463,-898.48,0.0003589,14]
[377618261,1754459478473,-2210.73,0.0003589,14]
[377618262,1754459478483,-1982.56,0.0003589,14]
[377618263,1754459478493,-1047.25,0.0003589,14]
[377618264,1754459478503,-400.0,0.0003589,14]
[377618265,1754459478513,-400.0,0.0003589,14]
[377618266,1754459478522,-2572.33,0.0003589,14]
[377618267,1754459478531,-400.0,0.0003589,14]
[377618268,1754459478542,-400.0,0.0003589,14]
[377618269,1754459478555,-400.0,0.0003589,14]
[377618270,1754459478565,-622.41,0.0003589,14]
[377618271,1754459478575,-637.19,0.0003589,14]
[377618272,1754459478586,-991.25,0.0003589,14]
[377618273,1754459478596,-591.1,0.0003589,14]
[377618274,1754459478608,-1922.23,0.0003589,14]
[377618275,1754459478618,-3159.81,0.0003589,14]
[377618276,1754459478629,-400.0,0.0003589,14]
[377618277,1754459478639,-500.0,0.0003589,31]
[377618278,1754459478648,-400.0,0.0003589,14]
[377618279,1754459478658,-11662.47167766,0.0003589,14]
[377618280,1754459479800,-150.0,0.00030048,3]
[377618281,1754459479811,-400.0,0.00035616,14]
[377618282,1754459479823,-5102.5,0.00035616,14]
[377618283,1754459481102,-300.0,0.00032288,3]
[377618284,1754459481114,-150.0,0.000337,3]
[377618285,1754459481123,-150.0,0.00033947,2]
[377618286,1754459481132,-150.0,0.00033983,2]
[377618287,1754459481142,-150.0,0.00034042,2]
[377618288,1754459481153,-150.0,0.00034061,2]
[377618289,1754459481162,-150.0,0.00034252,2]
[377618290,1754459481171,-150.0,0.00034263,2]
[377618291,1754459481180,-150.0,0.00034305,2]
[377618292,1754459481190,-150.0,0.00034317,2]
[377618293,1754459481199,-150.0,0.0003449,2]
[377618294,1754459481208,-150.0,0.00034624,2]
[377618295,1754459481218,-150.0,0.00034666,2]
[377618296,1754459481227,-150.0,0.00034905,2]
[377618297,1754459481236,-150.0,0.00034954,2]
[377618298,1754459481245,-150.0,0.00035006,2]
[377618299,1754459481254,-150.0,0.00035009,2]
[377618300,1754459481263,-150.0,0.00035185,2]
[377618301,1754459481273,-150.0,0.00035197,2]
[377618302,1754459481282,-150.0,0.00035258,2]
[377618303,1754459481291,-150.0,0.0003539,2]
[377618304,1754459481300,-150.0,0.00035561,2]
[377618305,1754459481310,-150.0,0.00035572,2]
[377618306,1754459481319,-843.81344835,0.00035616,14]
[377618307,1754459481332,-87.93655165,0.00035616,14]
[377618308,1754459481341,-400.0,0.00035616,14]
[377618309,1754459481351,-656.16344795,0.00035616,14]
[377618310,1754459481365,-476.81655205,0.00035616,14]
[377618311,1754459481375,-400.0,0.00035616,14]
[377618312,1754459481384,-400.0,0.00035616,14]
[377618313,1754459481394,-403.60024421,0.00035616,2]
[377618314,1754459481405,-421.2,0.00035616,14]
[377618315,1754459481414,-400.0,0.00035616,14]
[377618316,1754459481424,-150.0,0.00035625,2]
[377618317,1754459481434,-150.0,0.00035786,2]
[377618318,1754459481445,-192.88872049,0.0003579,2]
[377618319,1754459481455,-295.63832234,0.0003589,14]
[377618320,1754459481465,-876.75,0.0003589,14]
[377618321,1754459481474,-420.22,0.0003589,14]
[377618322,1754459481485,-400.0,0.0003589,14]
[377618323,1754459481494,-1647.51,0.0003589,14]
[377618324,1754459481504,-475.54,0.0003589,14]
[377618325,1754459481513,-2026.09,0.0003589,14]
[377618326,1754459481523,-263.93,0.0003589,14]
[377618327,1754459481533,-1887.2,0.0003589,14]
[377618328,1754459481543,-400.0,0.0003589,14]
[377618329,1754459481557,-1921.57,0.0003589,14]
[377618330,1754459481568,-1164.97,0.0003589,14]
[377618331,1754459481577,-400.0,0.0003589,14]
[377618332,1754459481586,-1002.24,0.0003589,14]
[377618333,1754459481595,-400.0,0.0003589,14]
[377618334,1754459481605,-400.0,0.0003589,14]
[377618335,1754459481616,-400.0,0.0003589,14]
[377618336,1754459481627,-309.94230341,0.0003589,14]
[377618337,1754459483660,-150.0,0.00033932,2]
[377618338,1754459483670,-150.0,0.00034036,2]
[377618339,1754459483679,-150.0,0.00034057,2]
[377618340,1754459483689,-150.0,0.00034071,2]
[377618341,1754459483698,-150.0,0.00034096,2]
[377618342,1754459483707,-150.0,0.00034182,2]
[377618343,1754459483716,-150.0,0.00034221,2]
[377618344,1754459483725,-151.0,0.00034347,5]
[377618345,1754459483734,-150.0,0.00034389,2]
[377618346,1754459483744,-71.05220895,0.00034394,2]
[377618347,1754459483770,-78.94779105,0.00034394,2]
[377618348,1754459483779,-150.0,0.00034411,2]
[377618349,1754459483789,-150.0,0.00034414,2]
[377618350,1754459483800,-150.0,0.00034473,2]
[377618351,1754459483812,-150.0,0.00034541,2]
[377618352,1754459483821,-150.0,0.00034608,2]
[377618353,1754459483832,-150.0,0.00034708,2]
[377618354,1754459483841,-150.0,0.00034746,2]
[377618355,1754459483852,-150.0,0.00034788,2]
[377618356,1754459483863,-150.0,0.00034852,2]
[377618357,1754459483872,-150.0,0.00034871,2]
[377618358,1754459483882,-150.0,0.00034952,2]
[377618359,1754459483891,-150.0,0.0003496,2]
[377618360,1754459483900,-150.0,0.00034987,2]
[377618361,1754459483909,-150.0,0.00035049,2]
[377618362,1754459483919,-150.0,0.00035062,2]
[377618363,1754459483928,-150.0,0.0003529,2]
[377618364,1754459483937,-150.0,0.00035365,2]
[377618365,1754459483947,-150.0,0.0003543,2]
[377618366,1754459483956,-150.0,0.00035437,2]
[377618367,1754459483965,-150.0,0.00035507,2]
[377618368,1754459484238,-150.0,0.00035563,3]
[377618369,1754459484248,-400.0,0.00035616,14]
[377618370,1754459484258,-400.0,0.00035616,14]
[377618371,1754459484267,-759.05,0.00035616,14]
[377618372,1754459484277,-400.0,0.00035616,14]
[377618373,1754459484286,-759.05,0.00035616,14]
[377618374,1754459484296,-759.05,0.00035616,14]
[377618375,1754459484305,-611.02788902,0.00035616,14]
[377618376,1754459484328,-148.02211098,0.00035616,14]
[377618377,1754459484337,-362.87660852,0.00035616,14]
[377618378,1754459485342,-154.09513,0.00035379,7]
[377618379,1754459485352,-150.0,0.00035615,3]
[377618380,1754459485362,-1365.02339148,0.00035616,14]
[377618381,1754459485372,-400.0,0.00035616,14]
[377618382,1754459485381,-759.05,0.00035616,14]
[377618383,1754459485391,-400.0,0.00035616,14]
[377618384,1754459485401,-759.05,0.00035616,14]
[377618385,1754459485410,-400.0,0.00035616,14]
[377618386,1754459485419,-400.0,0.00035616,14]
[377618387,1754459485429,-759.05,0.00035616,14]
[377618388,1754459485438,-759.05,0.00035616,14]
[377618389,1754459485448,-759.05,0.00035616,14]
[377618390,1754459485457,-411.26,0.00035616,14]
[377618391,1754459485467,-557.23,0.00035616,14]
[377618392,1754459485476,-400.0,0.00035616,14]
[377618393,1754459485486,-406.59,0.00035616,14]
[377618394,1754459485496,-400.0,0.00035616,2]
[377618395,1754459485505,-400.0,0.00035616,14]
[377618396,1754459485514,-400.0,0.00035616,14]
[377618397,1754459485524,-400.0,0.00035616,14]
[377618398,1754459485533,-400.0,0.00035616,14]
[377618399,1754459485543,-400.0,0.00035616,14]
[377618400,1754459485557,-150.0,0.00035686,2]
[377618401,1754459485567,-150.0,0.00035707,2]
[377618402,1754459485576,-150.0,0.0003576,2]
[377618403,1754459485587,-150.0,0.00035879,3]
[377618404,1754459485596,-150.0,0.00035882,2]
[377618405,1754459485606,-759.05,0.00035889,14]
[377618406,1754459485619,-759.05,0.00035889,14]
[377618407,1754459485629,-759.05,0.00035889,14]
[377618408,1754459485639,-759.05,0.00035889,14]
[377618409,1754459485648,-759.05,0.00035889,14]
[377618410,1754459485657,-759.05,0.00035889,14]
[377618411,1754459485666,-759.05,0.00035889,14]
[377618412,1754459485676,-759.05,0.00035889,14]
[377618413,1754459485685,-759.13,0.00035889,14]
[377618414,1754459485694,-2110.98769659,0.0003589,14]
[377618415,1754459485703,-757.23,0.0003589,14]
[377618416,1754459485713,-1537.79,0.0003589,14]
[377618417,1754459485722,-1889.25,0.0003589,14]
[377618418,1754459485731,-2294.7,0.0003589,14]
[377618419,1754459485740,-400.0,0.0003589,14]
[377618420,1754459485750,-1193.77,0.0003589,14]
[377618421,1754459485759,-1056.52,0.0003589,14]
[377618422,1754459485768,-400.0,0.0003589,2]
[377618423,1754459485777,-400.0,0.0003589,14]
[377618424,1754459485786,-400.0,0.0003589,14]
[377618425,1754459485796,-400.0,0.0003589,14]
[377618426,1754459485805,-400.0,0.0003589,14]
[377618427,1754459485814,-2864.68,0.0003589,14]
[377618428,1754459485824,-325.27926014,0.0003589,14]
[377618429,1754459485833,-400.0,0.0003589,14]
[377618430,1754459485843,-400.0,0.0003589,14]
[377618431,1754459485852,-528.61,0.0003589,14]
[377618432,1754459485865,-539.5,0.0003589,14]
[377618433,1754459485874,-400.0,0.0003589,14]
[377618434,1754459485883,-1423.57,0.0003589,14]
[377618435,1754459485892,-400.0,0.0003589,14]
[377618436,1754459485902,-840.75,0.0003589,14]
[377618437,1754459485911,-400.0,0.0003589,14]
[377618438,1754459485920,-1216.69,0.0003589,14]
[377618439,1754459485929,-699.68,0.0003589,14]
[377618440,1754459485942,-400.0,0.0003589,14]
[377618441,1754459485951,-461.05,0.0003589,14]
[377618442,1754459485960,-713.95,0.0003589,14]
[377618443,1754459485969,-2258.55,0.0003589,14]
[377618444,1754459485978,-400.0,0.0003589,14]
[377618445,1754459485987,-1000.0,0.0003589,30]
[377618446,1754459485997,-400.0,0.0003589,14]
[377618447,1754459486006,-1792.39,0.0003589,14]
[377618448,1754459486015,-400.0,0.0003589,14]
[377618449,1754459486024,-2403.46,0.0003589,14]
[377618450,1754459486033,-400.0,0.0003589,14]
[377618451,1754459486042,-400.0,0.0003589,14]
[377618452,1754459486051,-2222.51,0.0003589,14]
[377618453,1754459486060,-2769.27,0.0003589,14]
[377618454,1754459486069,-400.0,0.0003589,14]
[377618455,1754459486078,-1966.83,0.0003589,14]
[377618456,1754459486087,-400.0,0.0003589,14]
[377618457,1754459486111,-400.0,0.0003589,14]
[377618458,1754459486126,-400.0,0.0003589,14]
[377618459,1754459486144,-404.54,0.0003589,14]
[377618460,1754459486162,-649.75,0.0003589,14]
[377618461,1754459486177,-1270.86,0.0003589,14]
[377618462,1754459486195,-613.78,0.0003589,14]
[377618463,1754459486214,-400.0,0.0003589,14]
[377618464,1754459486231,-1643.16,0.0003589,14]
[377618465,1754459486251,-400.0,0.0003589,14]
[377618466,1754459486267,-1855.36,0.0003589,14]
[377618467,1754459486285,-2067.94,0.0003589,14]
[377618468,1754459486302,-4043.92,0.0003589,14]
[377618469,1754459486316,-400.0,0.0003589,14]
[377618470,1754459486336,-701.44,0.0003589,14]
[377618471,1754459486348,-654.27,0.0003589,14]
[377618472,1754459486365,-1936.47,0.0003589,14]
[377618473,1754459486381,-1982.0,0.0003589,14]
[377618474,1754459486393,-400.0,0.0003589,14]
[377618475,1754459486407,-98.61315386,0.0003589,14]
[377618476,1754459486481,-150.0,0.00035615,3]
[377618477,1754459486497,-3012.32684614,0.0003589,14]
[377618478,1754459486513,-1702.49,0.0003589,14]
[377618479,1754459486528,-2894.24,0.0003589,14]
[377618480,1754459486544,-1990.25,0.0003589,14]
[377618481,1754459486560,-713.3,0.0003589,14]
[377618482,1754459486575,-466.61689386,0.0003589,14]
[377618484,1754459737881,155.83,0.00013699,2]
[377618488,1754460118548,-155.83,0.00021918,2]
[377618489,1754460118581,-160.0,0.00023863,11]
[377618490,1754460118614,-195.29,0.00028327,2]
[377618491,1754460118647,-195.29,0.00030058,2]
[377618492,1754460118682,-150.0,0.00030136,2]
[377618493,1754460118717,-155.83,0.00030137,2]
[377618494,1754460118751,-150.0,0.00031506,2]
[377618495,1754460118787,-152.0,0.00031539,3]
[377618496,1754460118822,-195.29,0.00031788,2]
[377618497,1754460118858,-512.0,0.00032595,2]
[377618498,1754460118890,-500.0,0.00032876,15]
[377618499,1754460118925,-500.0,0.00032876,15]
[377618500,1754460118959,-500.0,0.00032876,15]
[377618501,1754460118996,-456.94,0.00032876,15]
[377618502,1754460119009,-43.06,0.00032876,15]
[377618503,1754460119019,-112.77,0.00032876,15]
[377618504,1754460119032,-160.0,0.00032876,15]
[377618505,1754460119053,-195.29,0.00032876,15]
[377618506,1754460119076,-31.94,0.00032876,15]
[377618507,1754460119085,-150.0,0.00032876,2]
[377618508,1754460119095,-13.35,0.00033187,7]
[377618509,1754460119118,-137.65,0.00033187,7]
[377618510,1754460119127,-12.35,0.00033187,7]
[377618511,1754460119142,-138.65,0.00033187,7]
[377618512,1754460119151,-17.18,0.00033199,7]
[377618513,1754460119167,-133.82,0.00033199,7]
[377618514,1754460119176,-16.18,0.00033199,7]
[377618515,1754460119187,-138.084953,0.00033199,7]
[377618516,1754460119196,-13.915047,0.0003325,30]
[377618517,1754460119207,-195.29,0.0003325,30]
[377618518,1754460119230,-512.0,0.0003325,30]
[377618519,1754460119253,-150.0,0.00028827,3]
[377618520,1754460119263,-269.84397863,0.0003325,30]
[377618521,1754460119272,-80.15602137,0.00033513,2]
[377618522,1754460119299,-300.0,0.00031067,3]
[377618523,1754460119308,-80.82397863,0.00033513,2]
[377618524,1754460119318,-119.17602137,0.00033518,2]
[377618525,1754460119337,-76.11397863,0.00033518,2]
[377618526,1754460119346,-349.65,0.00033834,30]
[377618527,1754460119355,-74.23602137,0.00034,7]
[377618528,1754460119408,-100.76397863,0.00034,7]
[377618529,1754460119418,-160.0,0.00034015,2]
[377618530,1754460119427,-239.23602137,0.00034122,120]
[377618543,1754460632054,-1535.17264067,0.00032423,2]
[377618544,1754460632299,-305.69824505,0.00032423,2]
[377618545,1754460632394,-8229.52500697,0.00032423,2]
[377618546,1754460632404,-692.08683869,0.00032423,2]
[377618547,1754460632414,-150.0,0.00032523,4]
[377618548,1754460632423,-150.0,0.00032523,4]
[377618549,1754460632432,-150.0,0.00032523,4]
[377618550,1754460632441,-150.0,0.00032523,4]
[377618551,1754460632451,-150.0,0.00032523,4]
[377618552,1754460632461,-150.0,0.00032923,3]
[377618553,1754460632470,-578.66211789,0.0003325,30]
[377618576,1754460638719,-142.54292911,0.0003325,30]
[377618577,1754460638729,-150.0,0.00033728,7]
[377618578,1754460638739,-500.0,0.00034,120]
[377618579,1754460638748,-500.0,0.00034,120]
[377618580,1754460638757,-166.52905809,0.00034085,2]
[377618581,1754460638882,-83.47094191,0.00034085,2]
[377618582,1754460638891,-1000.0,0.00034085,2]
[377618583,1754460638901,-54.52905809,0.00034122,120]
[377618584,1754460638912,-352.53827019,0.00034122,120]
[377618589,1754460639976,-378.73267826,0.00034122,120]